Cogmind - Beta 10.2 @@@ ROGUE MODE // 2020.10.30 @ 11:05:51 // Halloween2020/ForbiddenLore Player: blelm Result: Self-destructed Performance ------------- Evolutions (3) 1500 Regions Visited (6) 1200 Robots Destroyed (101) 505 Value Destroyed (3018) 3018 Prototype IDs (34) 680 Alien Tech Used (0) 0 Bonus (696) 696 TOTAL SCORE: 7599 Bonus ------- High Alert Combat Kills 396 Aligned with FarCom 300 Cogmind --------- Core Integrity 533/700 Matter 300/300 Energy 88/100 System Corruption 2% Temperature Cool (0) Movement Hovering (42) Location -7/Factory Parts ------- > --- POWER (1) -------- (None) > --- PROPULSION (4) --- Aerolev Unit Aerolev Unit Cooled Airjet > --- UTILITY (6) ------ Large Storage Unit Large Storage Unit Advanced Targeting Computer Hacking Suite > --- WEAPON (2) ------- Impact Mace > --- INVENTORY (16) --- Enhanced Nuclear Core Gravmag System Gravmag System Faulty Cooled Airjet Medium Storage Unit Medium Storage Unit High-capacity Matter Pod (200) Long-range Terrain Scanner Advanced Terrain Scan Processor Propulsion Shielding Layered Light Armor Plating Guided Plasma Cannon Precision Assault Rifle Precision Assault Rifle Advanced EMP Blaster Improved Grenade Launcher Peak State ------------ > --- POWER ------------ Light Nuclear Core > --- PROPULSION ------- Medium Treads Aerolev Unit Aerolev Unit Antigrav System > --- UTILITY ---------- High-capacity Storage Unit High-capacity Storage Unit High-capacity Storage Unit Advanced Targeting Computer Hardened Heavy Armor Plating > --- WEAPON ----------- Gauss Rifle Gauss Cannon > --- INVENTORY -------- Enhanced Nuclear Core Improved Treads Improved Treads Armored Treads Gravmag System Large Storage Unit Large Storage Unit Large Storage Unit High-capacity Storage Unit High-capacity Matter Pod Advanced Terrain Scanner Advanced Terrain Scan Processor Hardened Heavy Armor Plating Hardened Heavy Armor Plating Layered Light Armor Plating Layered Light Armor Plating Hacking Suite Guided Plasma Cannon Improved Assault Rifle Flak Cannon Gauss Cannon Gauss Cannon Gauss Cannon Advanced EMP Blaster Improved Grenade Launcher Heavy Mace [Rating: 52] Favorites ----------- Power Light Nuclear Core Engine Light Deuterium Engine Power Core Light Nuclear Core Propulsion Improved Treads Treads Improved Treads Leg Aluminum Leg Hover Unit Aerolev Unit Utility High-capacity Storage Unit Device System Backup Module Storage High-capacity Storage Unit Processor Advanced Targeting Computer Hackware Hacking Suite Protection Propulsion Shielding Weapon Shotgun Energy Gun Medium Laser Energy Cannon Guided Plasma Cannon Ballistic Gun Shotgun Ballistic Cannon Gauss Cannon Launcher Improved Grenade Launcher Special Weapon Mining Laser Impact Weapon Impact Mace Slashing Weapon Katana Build | -11 -10 -10 -10 -9 -8 -7 ------- Run | Scr Mat Min Exi Min Mat Fac Slots Evolved 6 | . . . . . 4 2 Power . | . . . . . . . Propulsion 2 | . . . . . 1 1 Utility 4 | . . . . . 3 1 Weapon . | . . . . . . . Parts Attached 107 | 3 8 . 2 2 34 58 Power 12 | . 1 . . . 6 5 Engine 4 | . . . . . 3 1 Core 8 | . 1 . . . 3 4 Reactor . | . . . . . . . Propulsion 27 | 2 2 . . . 4 19 Treads 13 | 2 2 . . . 4 5 Leg . | . . . . . . . Wheel . | . . . . . . . Hover 14 | . . . . . . 14 Flight . | . . . . . . . Utility 21 | . 3 . 2 . 7 9 Device 1 | . . . . . . 1 Storage 9 | . 3 . 2 . 1 3 Processor 1 | . . . . . . 1 Hackware 2 | . . . . . . 2 Protection 8 | . . . . . 6 2 Artifact . | . . . . . . . Weapon 47 | 1 2 . . 2 17 25 Energy Gun 2 | 1 . . . . . 1 Energy Cannon 2 | . . . . 1 . 1 Ballistic Gun 21 | . 2 . . 1 10 8 Ballistic Cannon 4 | . . . . . 2 2 Launcher 9 | . . . . . 3 6 Special Weapon 1 | . . . . . 1 . Impact Weapon 7 | . . . . . . 7 Slashing Weapon 1 | . . . . . 1 . Piercing Weapon . | . . . . . . . Special Melee Weapon . | . . . . . . . Unidentified Prototypes 9 | . . . . . 3 6 Parts Lost 8 | . . . . . . 8 Power 2 | . . . . . . 2 Propulsion 3 | . . . . . . 3 Utility 2 | . . . . . . 2 Weapon 1 | . . . . . . 1 Highest Loss Streak 4 | . . . . . . 4 Average Slot Usage (%) 95 | . 97 100 100 100 93 94 Engine 3 | . 12 . . . 3 1 Core 6 | . 1 14 14 14 5 5 Treads 21 | . 28 28 28 28 27 8 Hover 6 | . . . . . . 21 Storage 24 | . 26 28 28 28 27 17 Processor 2 | . . . . . . 7 Hackware 2 | . . . . . . 7 Protection 7 | . . . . . 12 8 Ballistic Gun 15 | . 25 28 28 27 14 5 Ballistic Cannon 2 | . . . . . 3 1 Impact Weapon 1 | . . . . . . 4 Naked Turns . | . . . . . . . Heaviest Build 132 | 13 43 43 75 75 132 132 Greatest Support 94 | 40 46 46 46 46 69 94 Greatest Overweight (x) 1 | . . . 1 1 1 1 Average Overweight (x) . | . . . . 1 1 . Largest Inventory Capacity 28 | 6 16 16 20 20 28 28 Average Capacity 21 | 6 11 16 16 20 28 19 Most Carried 28 | 6 12 13 20 20 28 28 Average Carried 20 | 5 7 12 14 19 26 19 Final Capacity 28 | 6 16 16 20 20 28 16 Final Carried 28 | 3 12 13 20 20 28 16 Class Distribution -------------------- 57% | Hauler-Mutant 34% | Mutant 7% | Hacker-Mutant Dominant Class ---------------- Mutant | -10/Materials Mutant | -10/Mines Mutant | -10/Exiles Hauler-Mutant | -9/Mines Hauler-Mutant | -8/Materials Mutant | -7/Factory Resources | -11 -10 -10 -10 -9 -8 -7 ----------- Run | Scr Mat Min Exi Min Mat Fac Matter Collected 2887 | 190 257 . . 253 1022 1165 Remotely . | . . . . . . . Salvage Created 3574 | . 272 . . 226 1396 1680 Parts 199 | . 22 . . 12 89 76 Haulers Intercepted 13 | . . . . . 6 7 Recyclers Shooed 3 | . 1 . . . 1 1 Parts Field Recycled . | . . . . . . . Retrieved Matter . | . . . . . . . Parts Self-Destructed . | . . . . . . . Prevented . | . . . . . . . Kills | -11 -10 -10 -10 -9 -8 -7 ------- Run | Scr Mat Min Exi Min Mat Fac Combat Hostiles Destroyed 71 | . 10 . . 5 26 30 Melee 1 | . . . . . . 1 Guns 36 | . 10 . . 2 13 11 Cannons 13 | . . . . 3 6 4 AOE 20 | . . . . . 7 13 Classes Destroyed 12 | . 3 . . . 8 1 Worker 4 | . . . . . 1 3 Builder 4 | . 1 . . . 1 2 Hauler 13 | . . . . . 6 7 Recycler 2 | . . . . . 1 1 Operator 4 | . . . . . 2 2 Watcher 3 | . . . . . 1 2 Swarmer 19 | . 5 . . . 7 7 Grunt 30 | . 5 . . 5 6 14 Brawler 2 | . . . . . 1 1 Sentry 13 | . . . . . 10 3 Hunter 4 | . . . . . 2 2 Programmer 3 | . . . . . . 3 Best Kill Streak 7 | . 3 . . 3 7 6 Combat Bots Only 5 | . 3 . . 3 4 5 Max Kills in Single Turn 3 | . 1 . . 1 2 3 Gunslinging . | . . . . . . . Exploded 3 | . . . . . 2 3 Melee 1 | . . . . . . 1 Uniques/NPCs Destroyed . | . . . . . . . Combat | -11 -10 -10 -10 -9 -8 -7 -------- Run | Scr Mat Min Exi Min Mat Fac Damage Taken 3247 | . 195 . . 57 1249 1746 Core 302 | . 25 . . . 110 167 Absorbed by Shields . | . . . . . . . Core Remaining (%) 90 | 100 . . . 90 80 . Volleys Fired 174 | . 19 . . 5 81 69 Largest 2 | . 2 . . 2 2 2 Hottest 123 | . 46 . . 120 123 120 Shots Fired 316 | . 37 . . 7 156 116 Gun 221 | . 37 . . 4 113 67 Cannon 72 | . . . . 3 35 34 Launcher 21 | . . . . . 6 15 Special 2 | . . . . . 2 . Kinetic 287 | . 37 . . 4 148 98 Thermal 8 | . . . . 3 2 3 Explosive 8 | . . . . . . 8 Electromagnetic 13 | . . . . . 6 7 Robot Hit Streak 40 | . 5 . . 11 15 40 Robot Miss Streak 4 | . 4 . . . 4 2 Penetration Max 1 | . . . . . . 1 Secondary Targets . | . . . . . . . Shots Hit Robots 252 | . 25 . . 7 111 109 Core Hits 142 | . 15 . . 8 60 59 Critical Hits 9 | . 1 . . . 2 6 Critical Kills 4 | . . . . . 2 2 Critical Parts Destroyed 5 | . 1 . . . . 4 Melee Attacks 43 | . . . . . 2 41 Impact 41 | . . . . . . 41 Slashing 2 | . . . . . 2 . Piercing . | . . . . . . . Sneak Attacks 8 | . . . . . . 8 Combat Hostiles . | . . . . . . . Follow-up Attacks . | . . . . . . . Damage Inflicted 7715 | . 338 . . 213 2599 4565 Guns 3214 | . 326 . . 88 1467 1333 Cannons 1398 | . . . . 118 554 726 Explosions 2010 | . . . . . 565 1445 Melee 1060 | . . . . . . 1060 Ramming 33 | . 12 . . 7 13 1 Kinetic 4387 | . 326 . . 88 2021 1952 Thermal 381 | . . . . 118 22 241 Explosive 1280 | . . . . . 271 1009 Electromagnetic 574 | . . . . . 272 302 Impact 1060 | . . . . . . 1060 Slashing . | . . . . . . . Piercing . | . . . . . . . Highest Corruption 3 | . 1 1 1 1 . 3 Average Corruption 1 | . 1 1 1 1 . 2 Corruption Purged 2 | . . . . . . 2 Effects 38 | . 2 2 3 2 . 29 Message Errors 16 | . 1 2 3 1 . 9 Matter Fused 2 | . . . . . . 2 Heat Flow Errors 8 | . . . . . . 8 Energy Discharges 4 | . . . . . . 4 Data Loss (minor) 4 | . . . . 1 . 3 Targeting Errors 1 | . . . . . . 1 Weapon Failures 3 | . 1 . . . . 2 Overload Shots . | . . . . . . . Overflow Damage 271 | . . . . . 26 245 Projectiles 5 | . . . . . 5 . Explosions 33 | . . . . . 21 12 Melee 233 | . . . . . . 233 Knockbacks 14 | . 1 . . . 2 11 Impact 3 | . 1 . . . . 2 Kinetic 10 | . . . . . 2 8 Secondary 1 | . . . . . . 1 Self-Inflicted Damage 130 | . . . . . 19 111 Shots 3 | . . . . . 1 2 Rammed 5 | . 3 . . 1 1 . Targets Rammed 7 | . 4 . . 1 1 1 Kicked . | . . . . . . . Crushed 2 | . 1 . . . . 1 Highest Temperature 270 | . 3 . . 270 264 245 Average Temperature 62 | . 1 . . 138 61 61 Received Heat Transfer 960 | . 69 . . 33 423 435 Siege Activations . | . . . . . . . Robots Corrupted . | . . . . . . . Combat Hostiles . | . . . . . . . Parts Fried 11 | . . . . . . 11 Impact Corruptions 11 | . . . . . . 11 Robots Melted 1 | . . . . . . 1 Combat Hostiles 1 | . . . . . . 1 Parts Melted 1 | . . . . 1 . . Heat Transferred 680 | . . . . 240 50 390 Parts Sabotaged . | . . . . . . . Parts Stolen . | . . . . . . . Parts Stripped . | . . . . . . . Power Chain Reactions 4 | . . . . . 1 3 Missiles Intercepted . | . . . . . . . Alert | -11 -10 -10 -10 -9 -8 -7 ------- Run | Scr Mat Min Exi Min Mat Fac Peak Influence 823 | . 180 31 . 70 578 823 Initial 262 | . . 31 . . 19 262 Average 273 | . 67 31 . 56 185 574 Maximum Alert Level 3 | . . . . . 2 3 Low Security (%) 50 | 100 100 100 . 100 55 . Level 1 20 | . . . . . 33 20 Level 2 20 | . . . . . 11 48 Level 3 9 | . . . . . . 30 Level 4 . | . . . . . . . Level 5 . | . . . . . . . High Security . | . . . . . . . Max Security . | . . . . . . . Squads Dispatched 15 | . 2 . . . 1 12 Investigation 6 | . 1 . . . . 5 Extermination 2 | . . . . . . 2 Reinforcement 7 | . 1 . . . 1 5 Assault . | . . . . . . . Garrison . | . . . . . . . Intercept . | . . . . . . . Construction Impeded 1 | . . . . . . 1 Haulers Reinforced 3 | . . . . . . 3 Stealth | -11 -10 -10 -10 -9 -8 -7 --------- Run | Scr Mat Min Exi Min Mat Fac Distress Signals 8 | . 2 . . . 2 4 Communications Jammed . | . . . . . . . Distress Signals . | . . . . . . . Times Spotted 133 | . 27 . . 5 47 54 Peak Tracking Total 6 | . 4 . . 3 5 6 Tactical Retreats 15 | . 6 . . . 3 6 Traps | -11 -10 -10 -10 -9 -8 -7 ------- Run | Scr Mat Min Exi Min Mat Fac Traps Triggered 9 | . 2 . . . 2 5 Indirectly . | . . . . . . . Trap Hack Attempts . | . . . . . . . Triggered . | . . . . . . . Disarmed . | . . . . . . . Reprogrammed . | . . . . . . . Reused . | . . . . . . . Traps Extracted . | . . . . . . . Installed . | . . . . . . . Triggered . | . . . . . . . Machines | -11 -10 -10 -10 -9 -8 -7 ---------- Run | Scr Mat Min Exi Min Mat Fac Machines Disabled 8 | . . . . . 3 5 Max in Single Turn 2 | . . . . . 1 2 Garrison Access 2 | . . . . . 1 1 Machines Sabotaged . | . . . . . . . Garrisons Compromised . | . . . . . . . Overloaded Fab Kills . | . . . . . . . Fab Network Shutdowns . | . . . . . . . Hacking | -11 -10 -10 -10 -9 -8 -7 --------- Run | Scr Mat Min Exi Min Mat Fac Machines Accessed 32 | . 6 . 2 . 13 11 Terminals 18 | . 4 . . . 9 5 Fabricators 2 | . . . . . . 2 Repair Stations . | . . . . . . . Recycling Units 5 | . 2 . . . 2 1 Scanalyzers 3 | . . . . . 1 2 Garrison Access 2 | . . . . . 1 1 Total Hacks 81 | . 16 . 2 . 36 27 Successful 50 | . 12 . 2 . 19 17 Failed 31 | . 4 . . . 17 10 Catastrophic 5 | . 1 . . . 2 2 Database Lockouts . | . . . . . . . Manual 41 | . 12 . 1 . 19 9 Terminals 50 | . 13 . . . 26 11 Fabricators 6 | . . . . . . 6 Repair Stations . | . . . . . . . Recycling Units 9 | . 3 . . . 4 2 Scanalyzers 11 | . . . . . 4 7 Garrison Access 3 | . . . . . 2 1 Terminal Hacks 23 | . 5 . 2 . 10 6 Record 1 | . . . 1 . . . Robot Analysis 5 | . 3 . . . 2 . Prototype ID Bank 1 | . . . . . 1 . Branch Access Points 1 | . . . . . 1 . Emergency Access Points 1 | . . . . . 1 . Terminal Index 1 | . . . . . . 1 Fabricator Index 1 | . . . . . . 1 Scanalyzer Index 1 | . . . . . . 1 Unreport Threat 3 | . 1 . . . 1 1 Locate Traps 3 | . . . . . 2 1 Hauler Manifests 4 | . 1 . . . 2 1 EX-Prototype ID Bank 1 | . . . 1 . . . Fabricator Hacks 3 | . . . . . . 3 Load Schematic 2 | . . . . . . 2 Build 1 | . . . . . . 1 Repair Station Hacks . | . . . . . . . Recycling Unit Hacks 4 | . 2 . . . 2 . Retrieve Components 4 | . 2 . . . 2 . Scanalyzer 7 | . . . . . 2 5 Insert Component 4 | . . . . . 1 3 Analyze 3 | . . . . . 1 2 Garrison Access Hacks 2 | . . . . . 1 1 Seal Access 2 | . . . . . 1 1 Unauthorized Hacks 11 | . 5 . . . 4 2 Terminals 11 | . 5 . . . 4 2 Track 4 | . 3 . . . 1 . Botnet 5 | . 1 . . . 2 2 Operators 2 | . 1 . . . 1 . Fabricators . | . . . . . . . Repair Stations . | . . . . . . . Recycling Units . | . . . . . . . Scanalyzers . | . . . . . . . Garrison Access . | . . . . . . . Data Cores Recovered 2 | . . . . . 1 1 Used 2 | . . . . . 1 1 Hacking Detections 24 | . 4 . . . 10 10 Full Trace Events 5 | . . . . . 1 4 Feedback Events . | . . . . . . . Feedback Blocked . | . . . . . . . Robot Schematics Acquired . | . . . . . . . Robots Built . | . . . . . . . Matter . | . . . . . . . Time . | . . . . . . . Total Robot Build Rating . | . . . . . . . Part Schematics Acquired 2 | . . . . . 1 1 Parts Built 1 | . . . . . . 1 Matter 219 | . . . . . . 219 Time 116 | . . . . . . 116 Total Part Build Rating 3 | . . . . . . 3 Parts Repaired . | . . . . . . . Time . | . . . . . . . Parts Recycled . | . . . . . . . Recycled Matter . | . . . . . . . Retrieved Matter . | . . . . . . . Retrieved Components 21 | . 2 . . . 19 . Parts Scanalyzed 3 | . . . . . 1 2 Part Schematics Acquired 2 | . . . . . 1 1 Parts Damaged . | . . . . . . . Bothacking | -11 -10 -10 -10 -9 -8 -7 ------------ Run | Scr Mat Min Exi Min Mat Fac Used RIF Installer . | . . . . . . . Robots Hacked . | . . . . . . . Non-combat . | . . . . . . . Combat . | . . . . . . . Robot Hacks Applied . | . . . . . . . Relay Couplers Released 4 | . . . . . . 4 Programmers 4 | . . . . . . 4 Robots Rewired . | . . . . . . . Allies Hacked . | . . . . . . . Hacks Repelled . | . . . . . . . Allies | -11 -10 -10 -10 -9 -8 -7 -------- Run | Scr Mat Min Exi Min Mat Fac Total Allies 1 | . . 1 . . . . Largest Group 1 | . . 1 1 . . . Highest-Rated Group 31 | . . 31 31 . . . Highest-Rated Ally 31 | . . 31 31 . . . Total Orders . | . . . . . . . Ally Attacks . | . . . . . . . Total Damage . | . . . . . . . Kills . | . . . . . . . Allies Corrupted . | . . . . . . . Allies Melted . | . . . . . . . Intel | -11 -10 -10 -10 -9 -8 -7 ------- Run | Scr Mat Min Exi Min Mat Fac Robot Analysis Total 5 | . 3 . . . 2 . Derelict Logs Recovered 1 | . . . . 1 . . Drone Launches . | . . . . . . . Drone Recoveries . | . . . . . . . Exploration | -11 -10 -10 -10 -9 -8 -7 ------------- Run | Scr Mat Min Exi Min Mat Fac Turns Passed 7904 | 6 1141 97 518 710 3139 2293 Spaces Moved 5375 | 1 632 61 307 374 1447 2553 Core . | . . . . . . . Treads 3085 | 1 632 61 307 374 1447 263 Legs . | . . . . . . . Wheels . | . . . . . . . Hover 2290 | . . . . . . 2290 Flight . | . . . . . . . Fastest Speed 38 | 160 160 160 160 180 180 38 Average Speed 118 | 160 160 160 166 180 182 57 Slowest Speed 183 | 160 160 160 180 180 183 183 Overloaded Moves . | . . . . . . . Propulsion Burnouts . | . . . . . . . Robots Hopped . | . . . . . . . Cave-ins Triggered . | . . . . . . . Exploration Rate (%) 59 | 2 95 16 69 76 99 61 Regions Visited 6 Branch Regions 3 Pre-discovered Areas 1 | . . . 1 . . . Known Exits Taken 1 | . . . . 1 . . Unknown Exits Taken 5 | 1 1 1 1 . 1 . Scrap Searched 3 | . . . . 3 . . Spaces Dug 41 | . . . . . 4 37 Terrain Destroyed 184 | . . . . . 69 115 Melee 15 | . . . . . 2 13 Projectile 38 | . . . . . 24 14 AOE 131 | . . . . . 43 88 Terrain Rammed . | . . . . . . . Walls Destroyed . | . . . . . . . Machines Disabled . | . . . . . . . Actions | -11 -10 -10 -10 -9 -8 -7 --------- Run | Scr Mat Min Exi Min Mat Fac Total 6508 | 6 728 61 313 403 1791 3206 Wait 645 | . 43 . . 20 159 423 Move 5369 | . 631 60 306 373 1446 2553 Hop . | . . . . . . . Pick Up 68 | . 11 1 5 1 31 19 Fast Attach 28 | . 4 . . . 8 16 Attach 17 | . . . . . 7 10 Detach 12 | . 3 . . . 4 5 Swap 62 | 3 4 . 2 2 19 32 Drop 83 | 3 9 . . 1 33 37 Fire 174 | . 19 . . 5 81 69 Melee 43 | . . . . . 2 41 Ram . | . . . . . . . Kick . | . . . . . . . Crush 7 | . 4 . . 1 1 1 Escape Stasis . | . . . . . . . Rewire . | . . . . . . . Trap . | . . . . . . . Miscellaneous . | . . . . . . . Route ------- -11/Scrapyard -10/Materials (discovered 5 exits: [*Mat x3] / [*Min x2]) -10/Mines -10/Exiles -9/Mines (discovered 2 exits: *Mat x2) -8/Materials (discovered 3 exits: *Fac x3) -7/Factory (discovered 3 exits: [*Fac x2] / [*Low]) History --------- Turn | Location | Event 7 | -11/Scrapyard | Discovered new exit (range 0) 7 | -11/Scrapyard | Entered Materials 104 | -10/Materials | Discovered new exit (range 7) 307 | -10/Materials | Build established: Mutant 437 | -10/Materials | Discovered new exit (range 16) 683 | -10/Materials | Discovered new exit (range 12) 909 | -10/Materials | Discovered new exit (range 7) 1048 | -10/Materials | Discovered new exit (range 16) 1148 | -10/Materials | Entered Mines 1151 | -10/Mines | Received a Mining Laser from a helpful Derelict 1215 | -10/Mines | Deemed a non-threat by the Exiles lab entrance 1215 | -10/Mines | Discovered new exit (range 5) 1230 | -10/Mines | Assembled infested the area 1245 | -10/Mines | Entered Exiles 1245 | -10/Exiles | Accompanied by 1 ally 1282 | -10/Exiles | Met 8R-AWN 1311 | -10/Exiles | Met EX-HEX 1359 | -10/Exiles | Met EX-BIN 1381 | -10/Exiles | Aligned with FarCom system 1383 | -10/Exiles | Given EX-Vault access code 1421 | -10/Exiles | Opened EX-Vault 1434 | -10/Exiles | Found Gui. Plasma Cannon 1467 | -10/Exiles | Warned to stay clear of 0b10 Research branches 1515 | -10/Exiles | Met EX-DEC 1522 | -10/Exiles | Learned location of Zion (-7) 1747 | -10/Exiles | Discovered new exit (range 11) 1763 | -10/Exiles | Left Exiles lab with Gui. Plasma Cannon 1763 | -10/Exiles | Entered Mines 2007 | -9/Mines | Build established: Hauler-Mutant 2237 | -9/Mines | Identified exit to Materials 2407 | -9/Mines | Discovered exit to Materials (range 8) 2473 | -9/Mines | Entered Materials 2473 | -8/Materials | Evolved 4 slots: Propulsion x1, Utility x3 3225 | -8/Materials | Discovered new exit (range 6) 4153 | -8/Materials | Discovered new exit (range 5) 5087 | -8/Materials | Discovered new exit (range 3) 5612 | -8/Materials | Entered Factory 5612 | -7/Factory | Evolved 2 slots: Propulsion x1, Utility x1 6553 | -7/Factory | Build established: Mutant 6753 | -7/Factory | Discovered new exit (range 12) 6950 | -7/Factory | Discovered new exit (range 5) 7141 | -7/Factory | Fabricated Aerolev Unit? 7606 | -7/Factory | Build established: Hacker-Mutant 7727 | -7/Factory | Discovered new exit (range 14) 7905 | -7/Factory | Self-destructed Last Messages --------------- 07776_ Connecting with Terminal... >>Index(Fabricators) Found 5 fabricators. Downloaded coordinate data. >>Index(Scanalyzers) Found 2 scanalyzers. Downloaded coordinate data. 07796_ Connecting with Terminal... 07819_ System corrupted: Heat flow error (+105). 07852_ Connecting with Scanalyzer... >>Insert(Faulty Cld. Airjet) Scanning Faulty Cld. Airjet... Ready to analyze. 07852_ ALERT: Suspicious activity at Scanalyzer F003. Dispatching Investigation squad. 07868_ System corrupted: Component data lost. 07891_ Propulsion Shielding destroyed. 07891_ Aerolev Unit destroyed. 07893_ Enh. Nuclear Core destroyed. 07904_ Hacking Suite destroyed. Map ----- +----------------------------------------------------+ | ?????????????# ]!! #?????????????########## | | ?????????????# ]!! #?????????????# [ | | ?????????????# #?????????????# | | ?????????????# #?????????????# """" "" | | ?????????????# #?????????????# """" "" | | ?????????????# #?????????????#] """" "" | | ?????????????# #?????????????# """" "" | | ?????????????# #?????????????# | | ?????????????# #?????????????#= | | ?????????????# !#?????????????# | | #####????????##############?????????????# "" | | #???????????????????????????????????# ""S | | "" #???????????????????????????????????# """ | | #???????????????????????????????????########## | | #?????????????????????????????????#####??????? | | "" #????????????????????????????????? ?????? | | """ #??????????????????????????????????""" ?????? | | ###??????##??????????????????????????# """ ?#### | | ?????#### #######################????# """ ?# | | ????? ## # #????# [ # | | ????? ## # #????# """ # | | ????? ## # #????# """ + | | ???? ## # #????# """ # | | ? !!! ## # #????# # | | !! ## Y # ############### | | """ !! ## @# # | | """ ## /g # | | """ ## # # | | ## # / | | ?? = ??# # # | | ???? ????# # # ########+# | | ??####+#############+############ #???# | | ??# % g #???#"" ! | | ??# #???#"" ! | | ??# < "" #???#"" ! | | ??# """ """ """ """ #???#T | | ??# "F """"" """"" """"" #???#"" "" | | ??########## """ """"" """"" """"" #???#"" "" | | ???????????# """ #???#""="" | | ???????????# """ #???# ! [ | | ???????????# #???### ## | | ############ #?????###? | | ######## #????????? | | #??????# #????????? | | ########+#############+##########+#????????? | | ## !!! # """ #????????? | | ## ] """ """ !!! # [ """ """ "T" #????????? | | ## """ """ !!! # """ """ " " #????????? | | ####+## """ """ # """ """ #????????? | | ] # # #????????? | +----------------------------------------------------+ Best States ------------- Heat Dissipation 34 Energy Generation 17 Energy Capacity 300 Matter Stores 300 Matter Capacity 300 Sight Range 16 Terrain Scan Density 10 Armor Coverage 600 Propulsion Shielding 33 Evasion (%) 57 Targeting Accuracy 8 Recoil Reduction 4 Offensive Hacking 20 Item Schematics ----------------- Hcp. Storage Unit | -8/Materials | Scanalyzed Aerolev Unit | -7/Factory | Scanalyzed Robot Schematics ------------------ None Fabricated ------------ Aerolev Unit | x1 | -7/Factory Alien Tech Used ----------------- None Achievements -------------- Party Time Challenges ------------ None Game ------ Seed LayeredSlugHumpback Manual? 0 Play Time 02:31:57 Cumulative 18.9 hours Start 2020.10.29 @ 22:33:54 End 2020.10.30 @ 11:05:51 Sessions 1 Manual Loads 0 Difficulty Rogue Special Mode Halloween2020/ForbiddenLore Game No. 17 Rogue 17 Adventurer 0 Explorer 0 Win Type - Total 0 Types 0/0/0/0/0/0/0/0/0 Lore% 13 Gallery% 12 Achievement% 16 Wizard Run 0 Options --------- ASCII 1 Keyboard 1 Movement Vi Keybinds 0 Fullscreen 1 Font 16/Terminus Map View 75x55 Tactical HUD 1 Map Filters NONE Filters NONE Steam 1 RUN: 415e6e2d-8df6-48ba-a8be-696867c2da18